fUST/lending_fUST_20240710
["ID","MTS","AMOUNT","RATE_DAILY","PERIOD"]
[331587033,1720559440847,-1243.81097978,0.0002652,2]
[331587034,1720559440857,-21358.09691247,0.00026521,3]
[331587035,1720559440971,-1000.0,0.00026521,3]
[331587087,1720560383468,174.64145019,0.00015,2]
[331587135,1720560631953,-510.30323151,0.00021096,2]
[331587136,1720560632939,-122.84889449,0.00021096,2]
[331587137,1720560632949,-463.38851548,0.00021917,2]
[331587153,1720560637824,-602.2683891,0.00021917,2]
[331587155,1720560637834,-166.666666,0.00023599,2]
[331587157,1720560637843,-1096.5406414,0.00023982,2]
[331587159,1720560637853,-262.56091425,0.00024481,2]
[331587161,1720560637862,-155.22827276,0.00025204,2]
[331587163,1720560637871,-620.00302504,0.00025462,2]
[331587165,1720560637880,-52136.2205257,0.00025501,2]
[331587166,1720560637890,-30000.0,0.00025501,2]
[331587168,1720560637899,-500.0,0.00025602,7]
[331587170,1720560637908,-500.0,0.00025602,7]
[331587171,1720560637917,-500.0,0.00025602,7]
[331587173,1720560637926,-500.0,0.00025602,7]
[331587175,1720560637935,-500.0,0.00025602,7]
[331587177,1720560637944,-500.0,0.00025602,7]
[331587179,1720560637953,-500.0,0.00025602,7]
[331587181,1720560637963,-500.0,0.00025602,7]
[331587183,1720560637972,-469.52,0.00025602,7]
[331587185,1720560637982,-500.0,0.00025602,7]
[331587187,1720560637993,-500.0,0.00025602,7]
[331587189,1720560638002,-366.61198732,0.00026119,2]
[331587190,1720560638013,-5292.21400908,0.00026193,2]
[331587192,1720560638022,-160.0,0.000262,10]
[331587194,1720560638032,-493.8,0.0002628,3]
[331587195,1720560638041,-164.59,0.0002629,3]
[331587196,1720560638051,-329.19,0.000263,3]
[331587197,1720560638062,-658.38,0.0002631,3]
[331587198,1720560638071,-9109.82,0.0002635,3]
[331587199,1720560638081,-31661.20923723,0.0002636,5]
[331587200,1720560638090,-33555.116542,0.0002636,3]
[331587201,1720560638100,-2487.62195956,0.0002638,2]
[331587202,1720560638110,-4555.24995561,0.0002645,5]
[331587203,1720560638119,-17869.4656255,0.0002645,3]
[331587204,1720560640093,-5131.47,0.0002634,3]
[331587205,1720560640122,-2460.04,0.0002634,3]
[331587206,1720560640132,-15685.6509165,0.0002645,3]
[331587207,1720560640141,-281.1,0.0002648,2]
[331587208,1720560640152,-3000.0,0.000265,2]
[331587209,1720560640161,-33555.116542,0.00026501,3]
[331587210,1720560640171,-3000.0,0.0002651,2]
[331587211,1720560640180,-3000.0,0.0002652,2]
[331587212,1720560640190,-428.24738691,0.00026521,2]
[331587213,1720560640202,-1000.0,0.00026521,2]
[331587214,1720560640211,-763.79636746,0.00026521,2]
[331587215,1720560640221,-518.07029447,0.00026521,30]
[331587216,1720560640230,-189.22156458,0.00026521,2]
[331587217,1720560640240,-225.71833691,0.00026521,2]
[331587218,1720560640249,-394.11469993,0.00026521,30]
[331587219,1720560640259,-1274.12166133,0.00026521,2]
[331587692,1720561838259,-191.12784748,0.00018798,2]
[331587693,1720561838269,-52136.2205257,0.000198,2]
[331587694,1720561838279,-1065.65690458,0.0002,2]
[331587700,1720561838364,-1000.0,0.0002,2]
[331587701,1720561838376,-154.6366009,0.0002,2]
[331587702,1720561838386,-293.45867215,0.0002,2]
[331587703,1720561838396,-601.494519,0.00021096,2]
[331587704,1720561838406,-1096.5406414,0.00021447,2]
[331587705,1720561838416,-155.22827276,0.0002243,2]
[331587706,1720561838426,-302.69857441,0.00023453,2]
[331587707,1720561838435,-435.0,0.00023455,2]
[331587708,1720561838445,-2487.62195956,0.00023939,2]
[331587709,1720561838455,-658.38,0.0002401,3]
[331587710,1720561838464,-329.19,0.0002401,3]
[331587711,1720561838474,-164.59,0.0002401,3]
[331587712,1720561838484,-40487.6150144,0.0002402,3]
[331587713,1720561838494,-493.8,0.0002402,3]
[331587714,1720561838504,-11875.33027955,0.0002403,5]
[331587715,1720561838514,-121462.845043,0.0002403,3]
[331587716,1720561838524,-500.0,0.00024039,2]
[331587717,1720561838534,-163.35043484,0.00024039,2]
[331587718,1720561838543,-195.10014411,0.00024039,2]
[331587719,1720561838554,-500.0,0.00024039,2]
[331587720,1720561838563,-500.0,0.00024039,2]
[331587721,1720561838572,-397.35130491,0.00024039,2]
[331587722,1720561838582,-200.0,0.00024039,2]
[331587723,1720561838591,-500.0,0.00024039,2]
[331587724,1720561838601,-500.0,0.00024039,2]
[331587725,1720561838611,-500.0,0.00024039,2]
[331587726,1720561838621,-452.66476715,0.00024039,2]
[331587727,1720561838630,-33421.29619379,0.0002404,5]
[331587728,1720561838639,-130862.81986094,0.0002404,2]
[331587729,1720561838649,-151.0,0.0002404,7]
[331587730,1720561838659,-2852.47794,0.0002404,7]
[331587731,1720561838668,-2852.47794,0.0002404,7]
[331587732,1720561838678,-151.0,0.0002404,7]
[331587733,1720561838687,-2487.62195956,0.00024779,2]
[331587734,1720561838697,-1136.28120194,0.00025,30]
[331587735,1720561838707,-394.11469993,0.00025,30]
[331587736,1720561838716,-162.083833,0.00025272,2]
[331587737,1720561838726,-1316.76,0.0002538,3]
[331587738,1720561838735,-658.38,0.0002538,3]
[331587739,1720561838745,-329.18,0.0002538,3]
[331587740,1720561838754,-151.0,0.00025463,7]
[331587741,1720561838764,-2852.47794,0.00025491,7]
[331587742,1720561838773,-2852.47794,0.00025491,7]
[331587743,1720561838782,-23054.8784385,0.00025491,3]
[331587759,1720561840111,-17432.7365759,0.00025491,3]
[331587760,1720561840121,-151.0,0.00025501,7]
[331587761,1720561840131,-13468.44359236,0.00025501,2]
[331587762,1720561840140,-30000.0,0.00025501,2]
[331587763,1720561840150,-150.0,0.00025553,2]
[331587764,1720561840159,-150.47620585,0.00025591,2]
[331587765,1720561840168,-174.1490997,0.00025591,2]
[331587766,1720561840178,-150.0,0.00025591,2]
[331587767,1720561840188,-208.54201475,0.00025595,2]
[331587768,1720561840197,-500.0,0.00025602,7]
[331587769,1720561840206,-500.0,0.00025602,7]
[331587770,1720561840216,-429.81028153,0.00025602,7]
[331587779,1720561843322,-70.18971847,0.00025602,7]
[331587780,1720561843331,-500.0,0.00025602,7]
[331587781,1720561843341,-500.0,0.00025602,7]
[331587782,1720561843351,-500.0,0.00025602,7]
[331587783,1720561843361,-500.0,0.00025602,7]
[331587784,1720561843371,-500.0,0.00025602,7]
[331587785,1720561843381,-500.0,0.00025602,7]
[331587786,1720561843390,-500.0,0.00025602,7]
[331587787,1720561843399,-469.52,0.00025602,7]
[331587788,1720561843409,-13.48854985,0.00025602,7]
[331587970,1720563038352,-262.56091425,0.00018899,2]
[331587971,1720563038362,-571.419793,0.00021096,2]
[331587972,1720563038372,-1197.313829,0.00024413,2]
[331587973,1720563038383,-828.20408226,0.00024481,5]
[331587974,1720563038394,-366.61198732,0.00025295,2]
[331587975,1720563038404,-5292.21400908,0.00025424,2]
[331587976,1720563038414,-300.0,0.00025499,2]
[331587977,1720563038424,-300.0,0.00025499,2]
[331587978,1720563038434,-153.0,0.000255,2]
[331587979,1720563038444,-153.0,0.000255,2]
[331587980,1720563038454,-500.0,0.000255,2]
[331587981,1720563038464,-500.0,0.000255,2]
[331587982,1720563038474,-52136.2205257,0.00025501,2]
[331587983,1720563038484,-30000.0,0.00025501,2]
[331587984,1720563038495,-2000.0,0.00025502,2]
[331587985,1720563038504,-9594.06,0.00025532,3]
[331587986,1720563038516,-6144.79,0.00025542,3]
[331587987,1720563038527,-33382.1155449,0.00025582,3]
[331587988,1720563038548,-500.0,0.00025602,7]
[331587989,1720563038560,-500.0,0.00025602,7]
[331587990,1720563038571,-429.81,0.00025602,7]
[331587991,1720563038582,-1000.0,0.00025602,2]
[331587992,1720563038593,-225.71833691,0.00025602,2]
[331587993,1720563038604,-518.07029447,0.00025602,30]
[331587994,1720563038615,-763.79636746,0.00025602,2]
[331587995,1720563038627,-428.24738691,0.00025602,2]
[331587996,1720563038637,-189.22156458,0.00025602,2]
[331587997,1720563038648,-5392.02527474,0.00025602,2]
[331587998,1720563038659,-287.42129962,0.00025602,2]
[331587999,1720563038670,-153.0,0.000257,2]
[331588000,1720563038681,-293.45867215,0.00025902,2]
[331588001,1720563038691,-292.8051127,0.00025902,2]
[331588002,1720563038702,-5000.0,0.00026,2]
[331588003,1720563038712,-281.1,0.00026339,2]
[331588004,1720563038723,-1792.37311168,0.0002639,2]
[331588005,1720563038734,-153.20766236,0.00026489,2]
[331588006,1720563038745,-4854.80956551,0.0002649,2]
[331588007,1720563038759,-2604.13695492,0.0002649,2]
[331588008,1720563038770,-3000.0,0.000265,2]
[331588009,1720563038781,-275.0,0.000265,2]
[331588010,1720563038793,-151.0,0.000265,7]
[331588011,1720563038804,-2281.307924,0.000265,7]
[331588012,1720563038815,-2281.307924,0.000265,7]
[331588013,1720563038826,-3000.0,0.0002651,2]
[331588014,1720563038836,-3000.0,0.0002652,2]
[331588015,1720563038846,-1158.49898017,0.00026521,2]
[331588016,1720563038857,-5937.66513977,0.00026529,5]
[331588017,1720563038867,-33382.1155449,0.0002653,3]
[331588018,1720563038878,-3000.0,0.0002653,2]
[331588019,1720563038888,-160.0,0.0002654,11]
[331588020,1720563038897,-3000.0,0.0002654,2]
[331588021,1720563038908,-3000.0,0.0002655,2]
[331588022,1720563038918,-3000.0,0.0002656,2]
[331588023,1720563038930,-3000.0,0.0002657,2]
[331588024,1720563038941,-307.922978,0.00026575,2]
[331588025,1720563038952,-3000.0,0.0002658,2]
[331588026,1720563038963,-3000.0,0.0002659,2]
[331588027,1720563038973,-3000.0,0.000266,2]
[331588028,1720563038983,-173.605559,0.000266,2]
[331588029,1720563038994,-3000.0,0.0002661,2]
[331588030,1720563039004,-1792.37311164,0.00026617,2]
[331588031,1720563039014,-3000.0,0.0002662,2]
[331588032,1720563039024,-173.768744,0.0002662,7]
[331588033,1720563039035,-2281.307924,0.0002662,7]
[331588034,1720563039044,-803.1319688,0.0002662,7]
[331588035,1720563039057,-1478.1759552,0.0002662,7]
[331588036,1720563039067,-3000.0,0.0002663,2]
[331588037,1720563039076,-3000.0,0.0002664,2]
[331588038,1720563039086,-33382.1155449,0.0002664,3]
[331588039,1720563039096,-3000.0,0.0002665,2]
[331588040,1720563039106,-2281.307924,0.00026659,7]
[331588041,1720563039115,-2281.307924,0.00026659,7]
[331588042,1720563039125,-3000.0,0.0002666,2]
[331588043,1720563039135,-500.0,0.00026669,2]
[331588044,1720563039145,-500.0,0.00026669,2]
[331588045,1720563039154,-497.17010088,0.00026669,2]
[331588046,1720563039164,-500.0,0.00026669,2]
[331588047,1720563039174,-228.14591344,0.00026669,2]
[331588048,1720563039184,-206.865337,0.00026669,2]
[331588049,1720563039194,-500.0,0.00026669,2]
[331588050,1720563039205,-500.0,0.00026669,2]
[331588051,1720563039215,-500.0,0.00026669,2]
[331588052,1720563039225,-3000.0,0.0002667,2]
[331588053,1720563039235,-3000.0,0.0002668,2]
[331588054,1720563039245,-3000.0,0.0002669,2]
[331588055,1720563039255,-3000.0,0.000267,2]
[331588056,1720563039265,-3000.0,0.0002671,2]
[331588057,1720563039276,-3000.0,0.0002672,2]
[331588058,1720563039286,-3000.0,0.0002673,2]
[331588059,1720563039296,-3000.0,0.0002674,2]
[331588060,1720563039307,-3000.0,0.0002675,2]
[331588061,1720563039317,-3000.0,0.0002676,2]
[331588062,1720563039327,-3000.0,0.0002677,2]
[331588063,1720563039337,-3000.0,0.0002678,2]
[331588064,1720563039347,-26559.41130058,0.0002678,3]
[331588071,1720563042436,-737.02338188,0.0002678,3]
[331588090,1720563046560,-6085.68086244,0.0002678,3]
[331588091,1720563046569,-26.31913754,0.0002679,2]
[331588092,1720563046582,-2973.68086246,0.0002679,2]
[331588093,1720563046592,-2800.41913754,0.000268,2]
[331588094,1720563285121,879.42,0.00010959,2]
[331588095,1720563306151,523.46,0.00010959,2]
[331588096,1720563316730,436.21,0.00010959,2]
[331588097,1720563327259,363.51,0.00010959,2]
[331588098,1720563337789,302.93,0.00010959,2]
[331588099,1720563348303,252.44,0.00010959,2]
[331588100,1720563359072,210.36,0.00010959,2]
[331588101,1720563369595,175.3,0.00010959,2]
[331588102,1720563380124,876.55,0.00010959,2]
[331588103,1720563420111,360.16423676,0.00013283,2]
[331588104,1720563432067,88794.48958114,0.00013283,2]
[331588106,1720563606659,307.14,0.00010959,2]
[331588107,1720563617189,614.32,0.00010959,2]
[331588108,1720563787438,378.3419311,0.00015229,2]
[331588109,1720563855147,3000.0,0.0001525,2]
[331588111,1720563894750,-653.0,0.00038348,120]
[331588112,1720563894777,-315.8111135,0.00038348,30]
[331588113,1720563894801,-2717.649999,0.00038348,120]
[331588114,1720563894828,-223.85065798,0.00038348,120]
[331588115,1720563894852,-153.1957154,0.00038348,120]
[331588116,1720563894876,-683.0,0.00038348,30]
[331588117,1720563894900,-683.0,0.00038348,30]
[331588118,1720563894925,-683.0,0.00038348,30]
[331588119,1720563894951,-683.0,0.00038348,30]
[331588120,1720563894974,-683.0,0.00038348,30]
[331588121,1720563894998,-683.0,0.00038348,30]
[331588122,1720563895022,-628.4409137,0.00038348,30]
[331588123,1720563895114,-683.0,0.00038348,30]
[331588124,1720563898581,358.3260617,0.00015371,2]
[331588125,1720563907165,215.31,0.00038348,120]
[331588126,1720563987476,384.05,0.00010959,2]
[331588128,1720563998221,320.04,0.00010959,2]
[331588129,1720564008752,266.7,0.00010959,2]
[331588131,1720564019271,222.25,0.00010959,2]
[331588132,1720564029139,-863.041267,0.00015632,2]
[331588133,1720564029158,-600.1115365,0.00015632,2]
[331588134,1720564029178,-236.0235193,0.00016038,2]
[331588135,1720564029198,-1082.4706572,0.00016153,2]
[331588136,1720564029812,267.51,0.00010959,2]
[331588137,1720564040516,414.95,0.00010959,2]
[331588138,1720564051065,345.79,0.00010959,2]
[331588139,1720564061647,288.16,0.00010959,2]
[331588140,1720564072114,240.13,0.00010959,2]
[331588141,1720564083143,200.11,0.00010959,2]
[331588142,1720564086727,24900.0,0.00015252,2]
[331588144,1720564093712,166.76,0.00010959,2]
[331588146,1720564104359,833.83,0.00010959,2]
[331588148,1720564121403,1927.3375417,0.00015252,2]
[331588149,1720564177120,1634.59229075,0.00014999,2]
[331588182,1720564238491,-300.0,0.00016244,2]
[331588183,1720564238501,-300.0,0.00016244,2]
[331588184,1720564238511,-59584.5790465,0.00016245,2]
[331588185,1720564238522,-396.86262553,0.00016253,2]
[331588186,1720564238532,-500.0,0.00016253,2]
[331588187,1720564238542,-500.0,0.00016253,2]
[331588188,1720564238552,-500.0,0.00016253,2]
[331588189,1720564238562,-57244.60275606,0.00016254,2]
[331588190,1720564238571,-17258.59312702,0.00016255,2]
[331588191,1720564238581,-42248.84590217,0.00016255,2]
[331588192,1720564238592,-166.666666,0.00016438,2]
[331588193,1720564238602,-166.666666,0.00016823,2]
[331588194,1720564238612,-166.666666,0.00017208,2]
[331588195,1720564238622,-166.666666,0.00017592,2]
[331588196,1720564238632,-400.0,0.00017756,2]
[331588197,1720564238642,-420.0,0.00017868,2]
[331588198,1720564238653,-166.666666,0.00017977,2]
[331588199,1720564238663,-191.12784748,0.00018,2]
[331588200,1720564238673,-166.666666,0.00018362,2]
[331588201,1720564238684,-922.8597104,0.00018899,2]
[331588202,1720564238694,-696.2767755,0.00018899,2]
[331588203,1720564238704,-674.33685413,0.00018899,2]
[331588204,1720564238715,-3655.29534969,0.000189,2]
[331588205,1720564238726,-2168.19844253,0.000189,2]
[331588206,1720564238736,-197.30576581,0.00019,2]
[331588207,1720564238746,-250.0,0.00019041,2]
[331588208,1720564238756,-162.578081,0.00019178,2]
[331588209,1720564238767,-587.0,0.00019655,2]
[331588210,1720564238777,-435.0,0.0002,2]
[331588211,1720564238786,-221.08370244,0.0002,2]
[331588212,1720564238796,-2168.19844249,0.00020999,2]
[331588213,1720564238806,-620.00428739,0.00021,2]
[331588214,1720564238815,-601.0404053,0.00021095,2]
[331588215,1720564238826,-185.330832,0.00021096,2]
[331588216,1720564238836,-586.864874,0.00021096,2]
[331588217,1720564238847,-823.0,0.00021621,2]
[331588218,1720564238857,-620.00021437,0.0002205,2]
[331588219,1720564238867,-880.11608907,0.00022289,2]
[331588220,1720564238878,-885.64307745,0.0002243,2]
[331588221,1720564238888,-243.16651748,0.0002243,2]
[331588222,1720564238898,-150.0,0.00022783,2]
[331588223,1720564238909,-155.22827276,0.00022941,2]
[331588224,1720564238919,-155.3062925,0.00022941,2]
[331588225,1720564238929,-1086.61186892,0.00022942,2]
[331588226,1720564238940,-252.18899173,0.00022943,2]
[331588227,1720564238951,-8906.49770966,0.00023098,5]
[331588228,1720564238962,-2168.19844249,0.00023099,2]
[331588229,1720564238972,-620.00001072,0.00023153,2]
[331588230,1720564238982,-150.0,0.0002325,2]
[331588231,1720564238992,-208.54201475,0.0002325,2]
[331588232,1720564239002,-250.0,0.00023331,2]
[331588233,1720564239012,-59584.5790465,0.00023443,3]
[331588234,1720564239022,-863.041267,0.00023448,2]
[331588235,1720564239033,-162.083833,0.00023497,2]
[331588236,1720564239043,-150.0,0.00023722,2]
[331588237,1720564239053,-174.1490997,0.00023767,2]
[331588238,1720564239063,-150.47620585,0.00023767,2]
[331588239,1720564239074,-1152.0,0.00023783,2]
[331588240,1720564239084,-160.66266123,0.00023798,2]
[331588241,1720564239094,-350.0,0.00023879,2]
[331588242,1720564239104,-3655.29534969,0.000239,2]
[331588243,1720564239113,-151.0,0.000239,7]
[331588244,1720564239124,-240.05101832,0.00023966,2]
[331588245,1720564239134,-154.60575532,0.00023966,2]
[331588246,1720564239145,-155.47658191,0.00023966,2]
[331588247,1720564239155,-379.32113345,0.00023966,2]
[331588248,1720564239166,-215.7369211,0.00023966,2]
[331588249,1720564239177,-276.64310743,0.00023966,2]
[331588250,1720564239188,-250.0,0.0002427,2]
[331588251,1720564239199,-620.00000054,0.0002431,2]
[331588252,1720564239210,-2167.411135,0.0002431,7]
[331588253,1720564239220,-2167.411135,0.0002431,7]
[331588254,1720564239229,-450.0,0.00024427,2]
[331588255,1720564239239,-251.08002692,0.00024481,2]
[331588256,1720564239249,-350.0,0.00024818,2]
[331588257,1720564239260,-550.0,0.00024975,2]
[331588258,1720564239270,-2168.19844249,0.00025198,2]
[331588259,1720564239280,-155.19639919,0.00025204,2]
[331588260,1720564239291,-450.0,0.00025366,2]
[331588261,1720564239302,-2167.411135,0.00025481,7]
[331588262,1720564239312,-2167.411135,0.00025481,7]
[331588263,1720564239323,-458.41117747,0.0002549,2]
[331588264,1720564239333,-500.0,0.0002549,2]
[331588265,1720564239398,-500.0,0.0002549,2]
[331588266,1720564239422,-488.53505433,0.0002549,2]
[331588267,1720564239433,-500.0,0.0002549,2]
[331588268,1720564239442,-500.0,0.0002549,2]
[331588269,1720564239452,-500.0,0.0002549,2]
[331588270,1720564239463,-500.0,0.0002549,2]
[331588271,1720564239474,-500.0,0.0002549,2]
[331588272,1720564239484,-500.0,0.0002549,2]
[331588273,1720564239495,-500.0,0.0002549,2]
[331588274,1720564239506,-313.32314362,0.0002549,2]
[331588275,1720564239516,-500.0,0.0002549,2]
[331588276,1720564239525,-584.55754108,0.0002549,2]
[331588277,1720564239536,-500.0,0.0002549,2]
[331588278,1720564239546,-500.0,0.0002549,2]
[331588279,1720564239556,-163.35043484,0.0002549,2]
[331588280,1720564239568,-2167.411135,0.00025491,7]
[331588281,1720564239579,-2167.411135,0.00025491,7]
[331588282,1720564239589,-119169.158093,0.00025491,3]
[331588283,1720564239599,-2167.411135,0.00025501,7]
[331588284,1720564239609,-2167.411135,0.00025501,7]
[331588285,1720564239619,-52136.2205257,0.00025501,2]
[331588286,1720564239629,-30000.0,0.00025501,2]
[331588287,1720564239639,-650.0,0.00025523,2]
[331588288,1720564239649,-150.0,0.00025604,2]
[331588289,1720564239659,-257.6,0.00025905,2]
[331588290,1720564239669,-184.31424669,0.00025914,2]
[331588291,1720564239680,-2500.0,0.00026,2]
[331588292,1720564239689,-750.0,0.00026071,2]
[331588293,1720564239699,-250.0,0.00026152,2]
[331588294,1720564239708,-900.0,0.00026161,2]
[331588295,1720564239718,-153.0,0.00026274,2]
[331588296,1720564239727,-366.61198732,0.0002635,2]
[331588297,1720564239737,-33421.29619379,0.00026442,5]
[331588298,1720564239746,-59584.5790465,0.00026442,3]
[331588299,1720564239756,-3000.0,0.000265,2]
[331588300,1720564239766,-3000.0,0.0002651,2]
[331588301,1720564239776,-2167.411135,0.0002651,7]
[331588302,1720564239786,-2167.411135,0.0002651,7]
[331588303,1720564239796,-3000.0,0.0002652,2]
[331588304,1720564239806,-3000.0,0.0002653,2]
[331588305,1720564239815,-5292.21400908,0.00026531,2]
[331588306,1720564239825,-3000.0,0.0002654,2]
[331588307,1720564239834,-3000.0,0.0002655,2]
[331588308,1720564239843,-3000.0,0.0002656,2]
[331588309,1720564239853,-3000.0,0.0002657,2]
[331588310,1720564239862,-3000.0,0.0002658,2]
[331588311,1720564239871,-3000.0,0.0002659,2]
[331588312,1720564239881,-3000.0,0.000266,2]
[331588313,1720564239891,-3000.0,0.0002661,2]
[331588314,1720564239901,-59584.5790465,0.0002661,3]
[331588315,1720564239910,-850.0,0.00026619,2]
[331588316,1720564239920,-3000.0,0.0002662,2]
[331588317,1720564239930,-3000.0,0.0002663,2]
[331588318,1720564239940,-3000.0,0.0002664,2]
[331588319,1720564239950,-3308.47667,0.0002665,2]
[331588320,1720564239961,-350.0,0.000267,2]
[331588321,1720564239972,-461.730335,0.000268,5]
[331588322,1720564239982,-1000.0,0.00026835,2]
[331588323,1720564239992,-813.14107465,0.00026848,7]
[331588324,1720564240002,-293.45867215,0.00026848,2]
[331588325,1720564240013,-318.12258394,0.00026857,2]
[331588326,1720564240023,-1000.0,0.00026878,2]
[331588327,1720564240033,-500.0,0.00027,3]
[331588328,1720564240043,-1000.0,0.00027,27]
[331588329,1720564240053,-5293.53071376,0.00027,4]
[331588330,1720564240068,-13664.00778319,0.00027,4]
[331588331,1720564240078,-2167.411135,0.00027,7]
[331588332,1720564240088,-2167.411135,0.00027,7]
[331588333,1720564240098,-153.0,0.00027014,2]
[331588334,1720564240108,-167.038957,0.00027123,2]
[331588335,1720564240117,-167.038957,0.00027123,120]
[331588336,1720564240128,-950.0,0.00027167,2]
[331588337,1720564240138,-239.20697677,0.00027184,2]
[331588338,1720564240148,-154.63660398,0.00027184,2]
[331588339,1720564240158,-586.864874,0.00027195,2]
[331588340,1720564240167,-261.858,0.00027211,2]
[331588341,1720564240178,-358.0,0.00027211,2]
[331588342,1720564240188,-1405.0,0.00027211,2]
[331588343,1720564240199,-450.0,0.00027248,2]
[331588344,1720564240209,-2168.19844249,0.00027297,2]
[331588345,1720564240220,-329.81295342,0.00027397,2]
[331588346,1720564240230,-500.0,0.00027397,2]
[331588347,1720564240240,-500.0,0.00027397,2]
[331588349,1720564240250,-500.0,0.00027397,2]
[331588351,1720564240260,-500.0,0.00027397,2]
[331588353,1720564240269,-500.0,0.00027397,2]
[331588355,1720564240279,-500.0,0.00027397,2]
[331588357,1720564240290,-500.0,0.00027397,2]
[331588359,1720564240300,-500.0,0.00027397,2]
[331588361,1720564240309,-500.0,0.00027397,2]
[331588363,1720564240319,-500.0,0.00027397,2]
[331588364,1720564240328,-500.0,0.00027397,2]
[331588366,1720564240338,-500.0,0.00027397,2]
[331588368,1720564240348,-500.0,0.00027397,2]
[331588371,1720564240358,-200.0,0.00027397,2]
[331588372,1720564240368,-500.0,0.00027397,2]
[331588374,1720564240377,-500.0,0.00027397,2]
[331588377,1720564240387,-500.0,0.00027397,2]
[331588379,1720564240398,-500.0,0.00027397,2]
[331588380,1720564240408,-500.0,0.00027397,2]
[331588382,1720564240417,-500.0,0.00027397,2]
[331588384,1720564240427,-500.0,0.00027397,2]
[331588386,1720564240437,-500.0,0.00027397,2]
[331588388,1720564240446,-500.0,0.00027397,2]
[331588390,1720564240457,-500.0,0.00027397,2]
[331588392,1720564240469,-500.0,0.00027397,2]
[331588394,1720564240479,-500.0,0.00027397,2]
[331588396,1720564240489,-500.0,0.00027397,2]
[331588398,1720564240500,-500.0,0.00027397,2]
[331588400,1720564240510,-500.0,0.00027397,2]
[331588402,1720564240520,-500.0,0.00027397,2]
[331588404,1720564240530,-500.0,0.00027397,2]
[331588406,1720564240540,-500.0,0.00027397,2]
[331588408,1720564240550,-440.9405631,0.00027397,2]
[331588410,1720564240560,-500.0,0.00027397,2]
[331588415,1720564240628,-325.59382776,0.00027397,2]
[331588417,1720564240639,-859.0554184,0.00027397,2]
[331588419,1720564240649,-859.0554184,0.00027397,2]
[331588421,1720564240658,-859.0554184,0.00027397,2]
[331588422,1720564240668,-859.0554184,0.00027397,2]
[331588424,1720564240677,-859.0554184,0.00027397,2]
[331588426,1720564240687,-859.0554184,0.00027397,2]
[331588427,1720564240696,-859.0554184,0.00027397,2]
[331588429,1720564240706,-859.0554184,0.00027397,2]
[331588430,1720564240717,-859.0554184,0.00027397,2]
[331588431,1720564240726,-859.0554184,0.00027397,2]
[331588432,1720564240736,-859.0554184,0.00027397,2]
[331588433,1720564240745,-859.0554184,0.00027397,2]
[331588434,1720564240754,-859.0554184,0.00027397,2]
[331588435,1720564240763,-859.0554184,0.00027397,2]
[331588436,1720564240772,-859.0554184,0.00027397,2]
[331588437,1720564240782,-859.0554184,0.00027397,2]
[331588438,1720564240791,-859.0554184,0.00027397,2]
[331588439,1720564240800,-859.0554184,0.00027397,2]
[331588440,1720564240810,-859.0554184,0.00027397,2]
[331588441,1720564240819,-859.0554184,0.00027397,2]
[331588442,1720564240828,-859.0554184,0.00027397,2]
[331588443,1720564240838,-859.0554184,0.00027397,2]
[331588444,1720564240848,-859.0554184,0.00027397,2]
[331588445,1720564240857,-859.0554184,0.00027397,2]
[331588446,1720564240866,-859.0554184,0.00027397,2]
[331588448,1720564240875,-859.0554184,0.00027397,2]
[331588449,1720564240895,-859.0554184,0.00027397,2]
[331588450,1720564240904,-859.0554184,0.00027397,2]